Cogmind - Beta 15 @@@ ROGUE MODE // 2025.06.19 @ 08:52:39 Player: Storm Mk9 Result: Destroyed by GF-1HH(R) with Subdweller Laser Performance ------------- Evolutions (0) 0 Regions Visited (1) 200 Robots Destroyed (16) 80 Value Destroyed (356) 356 Prototype IDs (5) 100 Alien Tech Used (0) 0 Bonus (0) 0 TOTAL SCORE: 736 Bonus ------- None Cogmind --------- Core Integrity 0/250 Matter 300/300 Energy 77/100 System Corruption 1% Temperature Warm (107) Movement Core (700) Ox13 Location -10/Materials Parts ------- > --- POWER (1) -------- (None) > --- PROPULSION (2) --- (None) > --- UTILITY (2) ------ High-capacity Storage Unit > --- WEAPON (2) ------- (None) > --- INVENTORY (20) --- Seismic Detector Peak State ------------ > --- POWER ------------ Light Ion Engine > --- PROPULSION ------- Light Treads Light Treads > --- UTILITY ---------- Small Storage Unit Seismic Detector > --- WEAPON ----------- Small Laser Light Assault Rifle > --- INVENTORY -------- Light Ion Engine EM Pulse Gun [Rating: 7] Favorites ----------- Power Light Ion Engine Engine Light Ion Engine Propulsion Light Treads Treads Light Treads Utility High-capacity Storage Unit Device Seismic Detector Storage High-capacity Storage Unit Weapon Small Laser Energy Gun Small Laser Ballistic Gun Light Assault Rifle Build | -11 -10 ------- Run | Yrd Mat Slots Evolved . | . . Power . | . . Propulsion . | . . Utility . | . . Weapon . | . . Parts Attached 13 | 7 6 Power 3 | 1 2 Engine 3 | 1 2 Core . | . . Reactor . | . . Propulsion 2 | 2 . Treads 2 | 2 . Leg . | . . Wheel . | . . Hover . | . . Flight . | . . Utility 4 | 2 2 Device 2 | 1 1 Storage 2 | 1 1 Processor . | . . Hackware . | . . Protection . | . . Artifact . | . . Weapon 4 | 2 2 Energy Gun 3 | 1 2 Energy Cannon . | . . Ballistic Gun 1 | 1 . Ballistic Cannon . | . . Launcher . | . . Special Weapon . | . . Impact Weapon . | . . Slashing Weapon . | . . Piercing Weapon . | . . Special Melee Weapon . | . . Unidentified Prototypes . | . . Parts Lost 10 | . 10 Power 3 | . 3 Propulsion 2 | . 2 Utility 1 | . 1 Weapon 4 | . 4 Highest Loss Streak 4 | . 4 To Critical Strikes . | . . Average Backups 2 | 1 2 Power . | . . Propulsion . | . . Utility . | . . Weapon . | . . Tool/Special . | . . Unused Backups . | . . Power . | . . Propulsion . | . . Utility . | . . Weapon . | . . Tool/Special . | . . Average Slot Usage (%) 89 | . 89 Engine 13 | . 13 Treads 21 | . 21 Device 13 | . 13 Storage 14 | . 14 Energy Gun 16 | . 16 Ballistic Gun 9 | . 9 Peak Build Rating 7 | 7 7 Average Rating 6 | 5 6 On Entrance 3 | . 7 Naked Turns . | . . Heaviest Build 48 | 11 48 Greatest Support 40 | 40 40 Greatest Overweight (x) 15 | . 15 Average Overweight (x) . | . 1 Largest Inventory Capacity 20 | 8 20 Average Capacity 14 | 7 19 Most Carried 5 | 5 3 Average Carried 2 | 2 2 Final Capacity 20 | 8 20 Final Carried 2 | 2 1 Class Distribution -------------------- 100% | Mutant Dominant Class ---------------- Mutant | -10/Materials Resources | -11 -10 ----------- Run | Yrd Mat Matter Collected 361 | 280 81 Remotely . | . . Salvage Created 570 | 70 500 Parts 37 | 11 26 Haulers Intercepted . | . . Recyclers Shooed . | . . Parts Field Recycled . | . . Retrieved Matter . | . . Parts Self-Destructed . | . . Prevented . | . . Kills | -11 -10 ------- Run | Yrd Mat Combat Hostiles Destroyed 8 | . 8 Guns 8 | . 8 Classes Destroyed 5 | 1 4 Worker 1 | . 1 Builder 2 | . 2 Tunneler 4 | 4 . Recycler 1 | . 1 Grunt 8 | . 8 Best Kill Streak 6 | 1 6 Combat Bots Only 4 | . 4 Max Kills in Single Turn 1 | 1 1 Gunslinging . | . . Exploded . | . . Melee . | . . Uniques/NPCs Destroyed . | . . Combat | -11 -10 -------- Run | Yrd Mat Hostile Shots Fired 84 | . 84 Missed 19 | . 19 Hits 65 | . 65 Projectile 65 | . 65 Critical Strikes 4 | . 4 Damage Taken 1033 | . 1033 Core 263 | . 263 Absorbed by Shields . | . . Core Remaining (%) 100 | 100 . Volleys Fired 71 | 20 51 Largest 2 | 2 2 Hottest 105 | 60 105 Shots Fired 116 | 40 76 Gun 116 | 40 76 Cannon . | . . Launcher . | . . Special . | . . Kinetic 35 | 20 15 Thermal 73 | 20 53 Explosive . | . . Electromagnetic 8 | . 8 Robot Hit Streak 11 | 7 11 Robot Miss Streak 5 | 5 3 Penetration Max . | . . Secondary Targets . | . . Shots Hit Robots 73 | 19 54 Core Hits 33 | 6 27 Critical Kills . | . . Critical Parts Destroyed . | . . Critical Strikes . | . . Melee Attacks . | . . Impact . | . . Slashing . | . . Piercing . | . . Sneak Attacks . | . . Combat Hostiles . | . . Follow-up Attacks . | . . Damage Inflicted 914 | 201 713 Guns 914 | 201 713 Cannons . | . . Explosions . | . . Melee . | . . Ramming . | . . Kinetic 175 | 86 89 Thermal 672 | 115 557 Explosive . | . . Electromagnetic 67 | . 67 Impact . | . . Slashing . | . . Piercing . | . . Highest Corruption 1 | . 1 Average Corruption 1 | . 1 Corruption Purged . | . . Corruption Blocked . | . . Effects 6 | . 6 Message Errors 2 | . 2 Matter Fused 2 | . 2 Heat Flow Errors 1 | . 1 Weapon Failures 1 | . 1 Overload Shots . | . . Overflow Damage . | . . Projectiles . | . . Explosions . | . . Melee . | . . Knockbacks . | . . Impact . | . . Kinetic . | . . Secondary . | . . Self-Inflicted Damage . | . . Shots . | . . Rammed . | . . Targets Rammed . | . . Kicked . | . . Crushed . | . . Highest Temperature 101 | 40 101 Average Temperature 24 | 19 27 Received Heat Transfer 579 | . 579 Siege Activations . | . . Martial Activations . | . . Shielding Activations . | . . Robots Disrupted . | . . Combat Hostiles . | . . Robots Corrupted . | . . Combat Hostiles . | . . Parts Fried . | . . Impact Corruptions . | . . Robots Melted . | . . Combat Hostiles . | . . Parts Melted 1 | . 1 Heat Transferred 1517 | 250 1267 Parts Sabotaged . | . . Parts Stolen . | . . Parts Stripped . | . . Power Chain Reactions . | . . Alert | -11 -10 ------- Run | Yrd Mat Maximum Alert Level . | . . Low Security (%) 100 | 100 100 Level 1 . | . . Level 2 . | . . Level 3 . | . . Level 4 . | . . Level 5 . | . . High Security . | . . Max Security . | . . Peak Influence 102 | 5 102 Initial . | . . Average 15 | . 24 Influence Increases 267 | 20 247 Destroy 0b10 Robot/C 160 | . 160 Destroy 0b10 Robot/NC 40 | 20 20 Destroy Leader 50 | . 50 Successful Hack 17 | . 17 Influence Decreases 246 | 20 226 Time Decay 146 | 20 126 Lost Part 100 | . 100 Squads Dispatched 2 | . 2 Investigation . | . . Extermination . | . . Reinforcement 2 | . 2 Assault . | . . Garrison . | . . Intercept . | . . Searches Triggered . | . . Construction Impeded . | . . Haulers Reinforced . | . . Active Scanning Responses . | . . Cargo Convoy Interrupts . | . . Stealth | -11 -10 --------- Run | Yrd Mat Distress Signals 3 | . 3 Communications Jammed . | . . Distress Signals . | . . Times Spotted 22 | . 22 Peak Tracking Total 5 | . 5 Tactical Retreats . | . . Traps | -11 -10 ------- Run | Yrd Mat Traps Triggered 1 | . 1 Indirectly . | . . Trap Hack Attempts . | . . Triggered . | . . Disarmed . | . . Reprogrammed . | . . Reused . | . . Traps Extracted . | . . Installed . | . . Triggered . | . . Machines | -11 -10 ---------- Run | Yrd Mat Machines Disabled . | . . Max in Single Turn . | . . Machines Repaired . | . . Machines Dismantled . | . . Machines Sabotaged . | . . Overloaded Fab Kills . | . . Hacking | -11 -10 --------- Run | Yrd Mat Machines Accessed 3 | . 3 Terminals 3 | . 3 Fabricators . | . . Repair Stations . | . . Recycling Units . | . . Scanalyzers . | . . Garrison Access . | . . Total Hacks 12 | . 12 Successful 5 | . 5 Failed 7 | . 7 Catastrophic 1 | . 1 Database Lockouts . | . . Manual 9 | . 9 Terminals 12 | . 12 Fabricators . | . . Repair Stations . | . . Recycling Units . | . . Scanalyzers . | . . Garrison Access . | . . Terminal Hacks 5 | . 5 Robot Analysis 2 | . 2 Prototype ID Bank 3 | . 3 Fabricator Hacks . | . . Repair Station Hacks . | . . Recycling Unit Hacks . | . . Scanalyzer . | . . Garrison Access Hacks . | . . Unauthorized Hacks . | . . Terminals . | . . Fabricators . | . . Repair Stations . | . . Recycling Units . | . . Scanalyzers . | . . Garrison Access . | . . Data Cores Recovered . | . . Used . | . . Hacking Detections 3 | . 3 Full Trace Events . | . . Feedback Events . | . . Feedback Blocked . | . . Robot Schematics Acquired . | . . Robots Built . | . . Authchips . | . . Time . | . . Total Robot Build Rating . | . . Part Schematics Acquired . | . . Parts Built . | . . Authchips . | . . Time . | . . Total Part Build Rating . | . . Parts Repaired . | . . Time . | . . Parts Recycled . | . . Recycled Matter . | . . Retrieved Matter . | . . Retrieved Components . | . . Parts Scanalyzed . | . . Part Schematics Acquired . | . . Parts Damaged . | . . Bothacking | -11 -10 ------------ Run | Yrd Mat Used RIF Installer . | . . Robots Hacked . | . . Non-combat . | . . Combat . | . . Robot Hacks Applied . | . . Relay Couplers Released . | . . Fabnet Peak Effective % . | . . Robots Rewired . | . . Allies Hacked . | . . Hacks Repelled . | . . Allies | -11 -10 -------- Run | Yrd Mat Total Allies . | . . Largest Group . | . . Highest-Rated Group . | . . Highest-Rated Ally . | . . Total Orders . | . . Ally Attacks . | . . Total Damage . | . . Kills . | . . Allies Corrupted . | . . Allies Melted . | . . Intel | -11 -10 ------- Run | Yrd Mat Active Infowar (turns) 324 | 33 291 Seismic 324 | 33 291 Robot Analysis Total 2 | . 2 Derelict Logs Recovered . | . . Drone Launches . | . . Drone Recoveries . | . . Exploration | -11 -10 ------------- Run | Yrd Mat Turns Passed 921 | 364 557 Spaces Moved 340 | 188 152 Core 13 | 7 6 Treads 327 | 181 146 Legs . | . . Wheels . | . . Hover . | . . Flight . | . . Fastest Speed 50 | 50 160 Average Speed 200 | 155 254 Slowest Speed 800 | 160 800 Overloaded Moves . | . . Propulsion Burnouts . | . . Robots Hopped . | . . Potential Cave-ins . | . . Cave-ins Triggered . | . . Exploration Rate (%) 26 | 10 43 Regions Visited 1 Branch Regions . Pre-discovered Areas . | . . Known Exits Taken . | . . Unknown Exits Taken 1 | 1 . Scrap Searched . | . . Spaces Dug . | . . Terrain Destroyed . | . . Melee . | . . Projectile . | . . AOE . | . . Terrain Rammed . | . . Walls Destroyed . | . . Machines Disabled . | . . Actions | -11 -10 --------- Run | Yrd Mat Total 470 | 223 247 Wait 33 | . 33 Move 339 | 187 152 Hop . | . . Pick Up 13 | 9 4 Fast Attach . | . . Attach 11 | 7 4 Detach . | . . Swap 2 | . 2 Drop 1 | . 1 Fire 71 | 20 51 Melee . | . . Ram . | . . Kick . | . . Crush . | . . Escape Stasis . | . . Rewire . | . . Trap . | . . Miscellaneous . | . . Route ------- -11/Scrapyard -10/Materials (discovered 2 exits: [*Min x2]) History --------- Turn | Location | Event 23 | -11/Scrapyard | Discovered new exit (range 16) 365 | -11/Scrapyard | Entered Materials 366 | -10/Materials | Build established: Mutant 500 | -10/Materials | Discovered new exit (range 4) 605 | -10/Materials | Discovered new exit (range 12) 767 | -10/Materials | Lost 3 parts (1p1n1w) 865 | -10/Materials | Derelicts attacked the area 898 | -10/Materials | Core integrity fell below 50% 914 | -10/Materials | Core integrity fell below 20% 922 | -10/Materials | Destroyed by GF-1HH(R) with Subdweller Laser Last Messages --------------- 00843_ K-01 Serf collects debris. 00847_ R-06 Scavenger collects Aluminum Leg. 00851_ K-01 Serf collects debris. 00852_ R-06 Scavenger collects Sml. Laser. 00854_ K-01 Serf collects debris. 00865_ ALERT: Derelict incursion detected, dispatching patrols to target area. 00883_ Sml. Laser destroyed. 00887_ Lgt. Ion Engine destroyed. 00893_ K-01 Serf cleans the Machine. 00904_ U-05 Engineer destroyed. 00906_ R-06 Scavenger collects Terrain Scanner. 00911_ R-06 Scavenger collects Welding Torch. 00911_ Heat Sink destroyed. 00914_ R-06 Scavenger collects Lgt. Ion Engine. 00915_ R-06 Scavenger destroyed. 00918_ K-01 Serf collects debris. 00919_ U2H7YMD#2ZHX&ATKDUEL S